[Event "28th Bosnjaci Open 2024"]
[Site "Bosnjaci"]
[Date "2024.01.06"]
[Round "6.5"]
[White "Zufic, Miroslav"]
[Black "Cupic, Lovro"]
[Result "1-0"]
[ECO "B17"]
[WhiteElo "2354"]
[BlackElo "2265"]
[Annotator "ChessBase"]
[PlyCount "111"]
[EventDate "2024.01.02"]
[EventType "swiss"]
[EventCountry "CRO"]
[SourceTitle "playchess.com"]
[Source "ChessBase"]
[SourceQuality "1"]
[TimeControl "5400+30"]

1. e4 {[%emt 0:00:04]} c6 {[%emt 0:00:04]} 2. d4 {[%emt 0:00:12]} d5 {[%emt 0:00:05]} 3. Nc3 {[%emt 0:02:14]} dxe4 {[%emt 0:00:08]} 4. Nxe4 {[%emt 0:00:04]} Nd7 {[%emt 0:00:08]} 5. Bc4 {[%emt 0:00:39]} Ngf6 {[%emt 0:00:15]} 6. Nxf6+ {[%emt 0:00:21]} Nxf6 {[%emt 0:00:37]} 7. c3 {[%emt 0:00:05]} Nd5 {[%emt 0:04:53]} 8. Nf3 {[%emt 0:00:47]} Be6 {[%emt 0:06:42]} 9. Bb3 {[%emt 0:03:45]} g6 {[%emt 0:03:10]} 10. O-O {[%emt 0:04:22]} Bg7 {[%emt 0:01:58]} 11. Re1 {[%emt 0:08:35]} O-O {[%emt 0:04:00]} 12. Bg5 {[%emt 0:04:23]} Re8 {[%emt 0:04:02]} 13. Qd2 {[%emt 0:05:09]} Bf5 {[%emt 0:03:32]} 14. h3 {[%emt 0:03:20]} f6 {[%emt 0:03:42]} 15. Bh6 {[%emt 0:10:29]} g5 {[%emt 0:00:21]} 16. Bxg7 {[%emt 0:01:56]} Kxg7 {[%emt 0:00:06]} 17. h4 {[%emt 0:03:08]} gxh4 {[%emt 0:06:04]} 18. Nxh4 {[%emt 0:00:30]} Bg6 {[%emt 0:01:27]} 19. c4 {[%emt 0:02:39]} Nc7 {[%emt 0:04:33]} 20. Qf4 {[%emt 0:06:46]} Qd7 {[%emt 0:03:41]} 21. Rad1 {[%emt 0:03:54]} Ne6 {[%emt 0:01:52]} 22. Qg3 {[%emt 0:01:16]} Nf8 {[%emt 0:00:22]} 23. f4 {[%emt 0:02:59]} Kh8 {[%emt 0:01:37]} 24. d5 {[%emt 0:02:32]} c5 {[%emt 0:01:39]} 25. Kf2 {[%emt 0:03:03]} Bh5 {[%emt 0:01:36]} 26. Rd3 {[%emt 0:02:34]} Rad8 {[%emt 0:02:35]} 27. Bc2 {[%emt 0:10:56]} b5 {[%emt 0:02:38]} 28. b3 {[%emt 0:01:30]} bxc4 {[%emt 0:00:42]} 29. bxc4 {[%emt 0:00:02]} Rb8 {[%emt 0:00:09]} 30. Rb3 {[%emt 0:05:16]} Qc7 {[%emt 0:14:36]} 31. f5 {[%emt 0:05:15]} Qxg3+ {[%emt 0:00:59]} 32. Kxg3 {[%emt 0:00:08]} Rb6 {[%emt 0:06:09]} 33. Kf4 {[%emt 0:00:41]} Nd7 {[%emt 0:06:27]} 34. g4 {[%emt 0:00:15]} Bf7 {[%emt 0:00:07]} 35. Nf3 {[%emt 0:00:28]} Kg7 {[%emt 0:00:26]} 36. Rbe3 {[%emt 0:01:13]} Rb4 {[%emt 0:00:24]} 37. Bb3 {[%emt 0:00:25]} Nb6 {[%emt 0:00:07]} 38. Kg3 {[%emt 0:01:25]} Nxc4 {[%emt 0:02:35]} 39. Bxc4 {[%emt 0:01:59]} Rxc4 {[%emt 0:00:06]} 40. d6 {[%emt 0:00:31]} Rb4 {[%emt 0:06:23]} 41. Rxe7 {[%emt 0:02:09]} Rxe7 {[%emt 0:00:22]} 42. Rxe7 {[%emt 0:00:06]} Rb6 {[%emt 0:00:58]} 43. Rd7 {[%emt 0:00:51]} Kf8 {[%emt 0:01:53]} 44. Rd8+ {[%emt 0:01:19]} Kg7 {[%emt 0:00:12]} 45. Rd7 {[%emt 0:00:10]} Kf8 {[%emt 0:00:04]} 46. g5 {[%emt 0:01:47]} Ke8 {[%emt 0:00:37]} 47. Re7+ {[%emt 0:00:27]} Kf8 {[%emt 0:00:04]} 48. Rd7 {[%emt 0:00:51]} Ke8 {[%emt 0:00:04]} 49. Re7+ {[%emt 0:00:35]} Kf8 {[%emt 0:00:04]} 50. Rxa7 {[%emt 0:00:43]} Rxd6 {[%emt 0:00:14]} 51. gxf6 {[%emt 0:00:20]} Rxf6 {[%emt 0:01:57]} 52. Kf4 {[%emt 0:00:20]} Bg8 {[%emt 0:01:28]} 53. Ke5 {[%emt 0:00:43]} Rc6 {[%emt 0:02:53]} 54. Ra8+ {[%emt 0:00:34]} Kg7 {[%emt 0:00:10]} 55. f6+ {[%emt 0:00:26]} Rxf6 {[%emt 0:01:21]} 56. Rxg8+ {[%emt 0:00:05]} 1-0

[Event "28th Bosnjaci Open 2024"]
[Site "Bosnjaci"]
[Date "2024.01.06"]
[Round "6.6"]
[White "Muratovic, Efim"]
[Black "Damjanovic, Stjepan"]
[Result "1/2-1/2"]
[ECO "A14"]
[WhiteElo "2345"]
[BlackElo "2149"]
[Annotator "ChessBase"]
[PlyCount "98"]
[EventDate "2024.01.02"]
[EventType "swiss"]
[EventCountry "CRO"]
[SourceTitle "playchess.com"]
[Source "ChessBase"]
[SourceQuality "1"]
[TimeControl "5400+30"]

1. g3 {[%emt 0:00:52]} Nf6 {[%emt 0:00:58]} 2. Bg2 {[%emt 0:00:09]} e6 {[%emt 0:01:06]} 3. Nf3 {[%emt 0:00:48]} d5 {[%emt 0:00:19]} 4. O-O {[%emt 0:00:58]} Be7 {[%emt 0:00:35]} 5. c4 {[%emt 0:02:25]} O-O {[%emt 0:00:36]} 6. b3 {[%emt 0:05:08]} Nbd7 {[%emt 0:04:25]} 7. Bb2 {[%emt 0:01:05]} b6 {[%emt 0:00:44]} 8. cxd5 {[%emt 0:03:25]} exd5 {[%emt 0:03:51]} 9. Nd4 {[%emt 0:01:13]} Nb8 {[%emt 0:08:55]} 10. Qc2 {[%emt 0:01:27]} Qd7 {[%emt 0:02:22]} 11. Nf3 {[%emt 1:18:30]} c5 {[%emt 0:04:37]} 12. d4 {[%emt 0:00:00]} Nc6 {[%emt 0:05:50]} 13. Ne5 {[%emt 0:00:00]} Qe6 {[%emt 0:04:09]} 14. Nxc6 {[%emt 0:00:00]} Qxc6 {[%emt 0:00:04]} 15. Nd2 {[%emt 0:00:00]} Bb7 {[%emt 0:10:07]} 16. Rac1 {[%emt 0:00:00]} Rac8 {[%emt 0:01:20]} 17. Qd3 {[%emt 0:00:00]} Qe6 {[%emt 0:03:21]} 18. dxc5 {[%emt 0:00:00]} bxc5 {[%emt 0:01:33]} 19. Rfe1 {[%emt 0:00:00]} Rfd8 {[%emt 0:02:41]} 20. Qf3 {[%emt 0:00:00]} Ne4 {[%emt 0:06:11]} 21. Nxe4 {[%emt 0:00:00]} dxe4 {[%emt 0:03:39]} 22. Qf4 {[%emt 0:00:00]} h6 {[%emt 0:01:58]} 23. Rc4 {[%emt 0:00:00]} f5 {[%emt 0:15:15]} 24. Bh3 {[%emt 0:00:00]} Rd5 {[%emt 0:00:38]} 25. Qc1 {[%emt 0:00:00]} Rcd8 {[%emt 0:04:17]} 26. Ra4 {[%emt 0:00:00]} Ba6 {[%emt 0:02:53]} 27. Bc3 {[%emt 0:00:00]} Bxe2 {[%emt 0:02:13]} 28. Rxa7 {[%emt 0:00:00]} Rd1 {[%emt 0:00:36]} 29. Qe3 {[%emt 0:00:00]} Rxe1+ {[%emt 0:00:54]} 30. Bxe1 {[%emt 0:00:00]} Bf3 {[%emt 0:01:48]} 31. Bf1 {[%emt 0:00:00]} Kh8 {[%emt 0:01:04]} 32. h3 {[%emt 0:00:00]} Rd1 {[%emt 0:01:18]} 33. Kh2 {[%emt 0:00:00]} Bg5 {[%emt 0:01:43]} 34. Qxc5 {[%emt 0:00:00]} Rxe1 {[%emt 0:00:49]} 35. Qc3 {[%emt 0:00:00]} Bf6 {[%emt 0:02:06]} 36. Qxe1 {[%emt 0:00:00]} f4 {[%emt 0:00:59]} 37. Bg2 {[%emt 0:00:00]} fxg3+ {[%emt 0:01:12]} 38. fxg3 {[%emt 0:00:00]} Qd5 {[%emt 0:00:20]} 39. Ra4 {[%emt 0:01:39]} Bxg2 {[%emt 0:00:37]} 40. Kxg2 {[%emt 0:00:16]} e3+ {[%emt 0:00:02]} 41. Kg1 {[%emt 0:04:18]} Qd2 {[%emt 0:00:50]} 42. Kf1 {[%emt 0:00:27]} Qd3+ {[%emt 0:01:11]} 43. Kg1 {[%emt 0:01:51]} Qd2 {[%emt 0:00:03]} 44. Ra8+ {[%emt 0:00:21]} Kh7 {[%emt 0:00:01]} 45. Qb1+ {[%emt 0:05:07]} g6 {[%emt 0:00:07]} 46. Qe4 {[%emt 0:01:32]} Qf2+ {[%emt 0:00:56]} 47. Kh1 {[%emt 0:02:29]} e2 {[%emt 0:00:32]} 48. Re8 {[%emt 0:00:00]} Qf1+ {[%emt 0:00:06]} 49. Kh2 {[%emt 0:00:00]} Qf2+ {[%emt 0:00:04]} 1/2-1/2

[Event "28th Bosnjaci Open 2024"]
[Site "Bosnjaci"]
[Date "2024.01.06"]
[Round "6.7"]
[White "Pehar, Borna"]
[Black "Hadzovic, Amir"]
[Result "0-1"]
[ECO "B06"]
[WhiteElo "1906"]
[BlackElo "2307"]
[Annotator "RC"]
[PlyCount "110"]
[EventDate "2024.01.02"]
[EventType "swiss"]
[EventCountry "CRO"]
[SourceTitle "playchess.com"]
[Source "ChessBase"]
[SourceQuality "1"]
[TimeControl "5400+30"]

1. e4 {[%emt 0:00:04]} g6 {[%emt 0:00:35]} 2. d4 {[%emt 0:00:09]} Bg7 {[%emt 0:00:05]} 3. Nc3 {[%emt 0:00:22]} Nc6 {[%emt 0:00:31]} 4. Be3 {[%emt 0:01:03]} d5 {[%emt 0:02:25]} 5. Nf3 {[%emt 0:11:50]} dxe4 {[%emt 0:13:42]} 6. Nxe4 {[%emt 0:00:13]} Nf6 {[%emt 0:00:41]} 7. Nxf6+ {[%emt 0:03:10]} Bxf6 {[%emt 0:00:16]} 8. Bd3 {[%emt 0:02:41]} Bg4 {[%emt 0:04:01]} 9. c3 {[%emt 0:05:48]} e5 {[%emt 0:09:12]} 10. Bb5 {[%emt 0:13:53]} exd4 {[%emt 0:17:02]} 11. Bxd4 {[%emt 0:05:05]} Qe7+ {[%emt 0:03:43]} 12. Qe2 {[%emt 0:05:01]} Qxe2+ {[%emt 0:06:38]} 13. Bxe2 {[%emt 0:00:56]} Bxd4 {[%emt 0:06:10]} 14. cxd4 {[%emt 0:01:17]} O-O-O {[%emt 0:00:41]} 15. Ne5 {[%emt 0:05:17]} Nxe5 {[%emt 0:02:32]} 16. dxe5 {[%emt 0:41:41]} Bxe2 {[%emt 0:00:19]} 17. Kxe2 {[%emt 0:00:00]} Rhe8 {[%emt 0:00:06]} 18. f4 {[%emt 0:00:00]} f6 {[%emt 0:00:06]} 19. Rhd1 {[%emt 0:00:00]} Rxd1 {[%emt 0:00:54]} 20. Rxd1 {[%emt 0:00:00]} fxe5 {[%emt 0:00:04]} 21. fxe5 {[%emt 0:00:00]} Rxe5+ {[%emt 0:00:03]} 22. Kf3 {[%emt 0:00:00]} a5 {[%emt 0:00:58]} 23. Rd2 {[%emt 0:00:00]} c6 {[%emt 0:00:53]} 24. Kf4 {[%emt 0:00:00]} Rf5+ {[%emt 0:02:50]} 25. Ke4 {[%emt 0:00:00]} Kc7 {[%emt 0:00:12]} 26. g4 {[%emt 0:00:00]} Rc5 {[%emt 0:00:48]} 27. h3 {[%emt 0:00:00]} b5 {[%emt 0:02:08]} 28. Rf2 {[%emt 0:00:00]} h5 {[%emt 0:01:53]} 29. gxh5 {[%emt 0:00:00]} Rxh5 {[%emt 0:00:11]} 30. Rf3 {[%emt 0:00:00]} Rd5 {[%emt 0:00:18]} 31. Rf2 {[%emt 0:00:00]} Kb6 {[%emt 0:01:12]} 32. Rc2 {[%emt 0:00:00]} b4 {[%emt 0:00:47]} 33. Rg2 {[%emt 0:00:00]} a4 {[%emt 0:01:47]} 34. b3 {[%emt 0:00:00]} a3 {[%emt 0:02:05]} 35. Ke3 {[%emt 0:00:00]} g5 {[%emt 0:01:37]} 36. Ke2 {[%emt 0:00:00]} c5 {[%emt 0:01:28]} 37. Rg4 {[%emt 0:00:00]} Kb5 {[%emt 0:00:25]} 38. h4 {[%emt 0:00:00]} gxh4 {[%emt 0:00:36]} 39. Rxh4 {[%emt 0:00:00]} Rg5 {[%emt 0:01:37]} 40. Kf2 {[%emt 0:00:00]} Kc6 {[%emt 0:00:32]} 41. Rh6+ {[%emt 0:00:00]} Kd5 {[%emt 0:00:13]} 42. Rh4 {[%emt 0:00:00]} Re5 {[%emt 0:00:12]} 43. Rh8 {[%emt 0:00:00]} Kd4 {[%emt 0:00:28]} 44. Rh3 {[%emt 0:00:00]} Re4 {[%emt 0:00:32]} 45. Rh1 {[%emt 0:00:00]} Kc3 {[%emt 0:00:48]} 46. Rh2 {[%emt 0:00:00]} Rd4 {[%emt 0:03:29]} 47. Ke1 {[%emt 0:00:00]} c4 {[%emt 0:00:38]} 48. bxc4 {[%emt 0:00:00]} b3 {[%emt 0:00:41]} 49. axb3 {[%emt 0:00:00]} Kxb3 {[%emt 0:00:17]} 50. Rh3+ {[%emt 0:00:00]} Kb2 {[%emt 0:00:14]} 51. Rh2+ {[%emt 0:00:00]} Kb1 {[%emt 0:00:17]} 52. Rh8 {[%emt 0:00:00]} a2 {[%emt 0:00:07]} 53. Rb8+ {[%emt 0:00:00]} Kc2 {[%emt 0:00:04]} 54. Ra8 {[%emt 0:19:00]} Rd1+ {[%emt 0:00:05]} 55. Ke2 {[%emt 0:00:00]} a1=Q {[%emt 0:00:11]} 0-1

[Event "28th Bosnjaci Open 2024"]
[Site "Bosnjaci"]
[Date "2024.01.06"]
[Round "6.8"]
[White "Sajin, Mirko"]
[Black "Vucenovic, Damian"]
[Result "1-0"]
[ECO "C45"]
[WhiteElo "2299"]
[BlackElo "2193"]
[Annotator "RC"]
[PlyCount "167"]
[EventDate "2024.01.02"]
[EventType "swiss"]
[EventCountry "CRO"]
[SourceTitle "playchess.com"]
[Source "ChessBase"]
[SourceQuality "1"]
[TimeControl "5400+30"]

1. e4 {[%emt 0:00:10]} e5 {[%emt 0:00:16]} 2. Nf3 {[%emt 0:00:21]} Nc6 {[%emt 0:00:39]} 3. d4 {[%emt 0:02:34]} exd4 {[%emt 0:00:26]} 4. Nxd4 {[%emt 0:00:36]} Bc5 {[%emt 0:00:34]} 5. Be3 {[%emt 0:00:44]} Qf6 {[%emt 0:00:30]} 6. c3 {[%emt 0:00:48]} Nge7 {[%emt 0:00:46]} 7. Bc4 {[%emt 0:02:21]} d6 {[%emt 0:00:40]} 8. O-O {[%emt 0:02:01]} Ne5 {[%emt 0:00:52]} 9. Be2 {[%emt 0:01:34]} Qg6 {[%emt 0:01:06]} 10. f3 {[%emt 0:10:01]} O-O {[%emt 0:01:08]} 11. Qd2 {[%emt 0:07:01]} d5 {[%emt 0:21:41]} 12. f4 {[%emt 0:07:29]} N5c6 {[%emt 0:02:09]} 13. e5 {[%emt 0:03:21]} Nxd4 {[%emt 0:07:38]} 14. Bxd4 {[%emt 0:03:59]} Bb6 {[%emt 0:03:01]} 15. Na3 {[%emt 0:09:00]} Bf5 {[%emt 0:11:08]} 16. Bf3 {[%emt 0:06:26]} Rfd8 {[%emt 0:06:10]} 17. Qf2 {[%emt 0:01:51]} Rac8 {[%emt 0:03:00]} 18. Bxb6 {[%emt 0:03:14]} axb6 {[%emt 0:02:27]} 19. Rfd1 {[%emt 0:00:59]} Bg4 {[%emt 0:07:04]} 20. Rd2 {[%emt 0:04:02]} Bxf3 {[%emt 0:06:06]} 21. Qxf3 {[%emt 0:00:06]} c6 {[%emt 0:00:04]} 22. Nc2 {[%emt 0:01:19]} Nf5 {[%emt 0:05:48]} 23. Re1 {[%emt 0:05:00]} Re8 {[%emt 0:00:28]} 24. Nd4 {[%emt 0:08:28]} h5 {[%emt 0:05:13]} 25. Qh3 {[%emt 0:05:45]} Nxd4 {[%emt 0:01:29]} 26. cxd4 {[%emt 0:00:12]} Qh6 {[%emt 0:02:06]} 27. Qf3 {[%emt 0:06:30]} Rcd8 {[%emt 0:03:18]} 28. g3 {[%emt 0:01:26]} f5 {[%emt 0:03:57]} 29. h3 {[%emt 0:01:37]} Re6 {[%emt 0:00:50]} 30. Rg2 {[%emt 0:00:55]} Rf8 {[%emt 0:02:02]} 31. Rf1 {[%emt 0:00:31]} Rg6 {[%emt 0:00:51]} 32. b4 {[%emt 0:02:20]} b5 {[%emt 0:00:20]} 33. Qe2 {[%emt 0:02:57]} Rf7 {[%emt 0:01:11]} 34. Rf3 {[%emt 0:00:48]} Rf8 {[%emt 0:00:54]} 35. Qc2 {[%emt 0:00:25]} Rf7 {[%emt 0:01:25]} 36. Qc3 {[%emt 0:00:32]} Rf8 {[%emt 0:00:15]} 37. Qc5 {[%emt 0:00:36]} h4 {[%emt 0:00:50]} 38. Qc1 {[%emt 0:00:44]} hxg3 {[%emt 0:00:33]} 39. Rfxg3 {[%emt 0:00:02]} Rxg3 {[%emt 0:00:04]} 40. Rxg3 {[%emt 0:00:06]} Re8 {[%emt 0:00:28]} 41. Qe3 {[%emt 0:00:24]} Re6 {[%emt 0:00:36]} 42. Kh2 {[%emt 0:00:52]} Kf8 {[%emt 0:00:25]} 43. Rg5 {[%emt 0:00:39]} Qh7 {[%emt 0:00:44]} 44. Qa3 {[%emt 0:00:31]} Qh4 {[%emt 0:00:26]} 45. Rxf5+ {[%emt 0:00:29]} Ke7 {[%emt 0:00:34]} 46. Qg3 {[%emt 0:00:13]} Qh7 {[%emt 0:00:11]} 47. Qg5+ {[%emt 0:00:59]} Ke8 {[%emt 0:00:08]} 48. Qh5+ {[%emt 0:00:12]} Qxh5 {[%emt 0:00:22]} 49. Rxh5 {[%emt 0:00:01]} Kf7 {[%emt 0:00:26]} 50. Rh8 {[%emt 0:01:18]} c5 {[%emt 0:00:36]} 51. dxc5 {[%emt 0:00:48]} Ra6 {[%emt 0:00:21]} 52. Rd8 {[%emt 0:00:24]} Rxa2+ {[%emt 0:00:07]} 53. Kg3 {[%emt 0:00:03]} Ke6 {[%emt 0:00:20]} 54. Re8+ {[%emt 0:00:46]} Kf5 {[%emt 0:00:58]} 55. Rf8+ {[%emt 0:00:14]} Ke6 {[%emt 0:00:17]} 56. Rb8 {[%emt 0:00:42]} d4 {[%emt 0:01:58]} 57. Rd8 {[%emt 0:00:22]} Ra3+ {[%emt 0:00:13]} 58. Kg4 {[%emt 0:00:14]} d3 {[%emt 0:00:31]} 59. Rd6+ {[%emt 0:00:16]} Ke7 {[%emt 0:00:04]} 60. Kf5 {[%emt 0:00:25]} Rb3 {[%emt 0:00:22]} 61. Rd4 {[%emt 0:00:40]} d2 {[%emt 0:01:18]} 62. Rxd2 {[%emt 0:00:05]} Rxb4 {[%emt 0:00:01]} 63. Rd6 {[%emt 0:00:41]} Rc4 {[%emt 0:01:00]} 64. Rb6 {[%emt 0:00:11]} Rxc5 {[%emt 0:00:31]} 65. Rxb7+ {[%emt 0:00:05]} Kd8 {[%emt 0:00:32]} 66. Rxg7 {[%emt 0:00:18]} b4 {[%emt 0:00:20]} 67. Rb7 {[%emt 0:00:05]} Rc4 {[%emt 0:00:04]} 68. e6 {[%emt 0:00:32]} Ke8 {[%emt 0:00:40]} 69. Ke5 {[%emt 0:00:14]} Kd8 {[%emt 0:00:12]} 70. f5 {[%emt 0:00:10]} Kc8 {[%emt 0:00:15]} 71. Rb5 {[%emt 0:00:26]} Kd8 {[%emt 0:00:25]} 72. f6 {[%emt 0:00:17]} Rc1 {[%emt 0:00:16]} 73. Rxb4 {[%emt 0:00:29]} Re1+ {[%emt 0:00:17]} 74. Re4 {[%emt 0:00:05]} Rf1 {[%emt 0:00:07]} 75. Rd4+ {[%emt 0:00:33]} Ke8 {[%emt 0:00:14]} 76. f7+ {[%emt 0:00:04]} Ke7 {[%emt 0:00:29]} 77. Rd7+ {[%emt 0:00:05]} Kf8 {[%emt 0:00:03]} 78. Rd8+ {[%emt 0:00:04]} Kg7 {[%emt 0:00:04]} 79. Rg8+ {[%emt 0:00:03]} Kh7 {[%emt 0:00:19]} 80. Rg4 {[%emt 0:00:07]} Re1+ {[%emt 0:00:16]} 81. Kf6 {[%emt 0:00:06]} Rf1+ {[%emt 0:00:05]} 82. Ke7 {[%emt 0:00:03]} Re1 {[%emt 0:00:05]} 83. Rh4+ {[%emt 0:00:18]} Kg6 {[%emt 0:00:05]} 84. f8=Q {[%emt 0:00:07]} 1-0

[Event "28th Bosnjaci Open 2024"]
[Site "Bosnjaci"]
[Date "2024.01.06"]
[Round "6.9"]
[White "Milovic, Jovan"]
[Black "Jocev, Milan"]
[Result "1/2-1/2"]
[ECO "A01"]
[WhiteElo "2223"]
[BlackElo "2376"]
[Annotator "RC"]
[PlyCount "24"]
[EventDate "2024.01.02"]
[EventType "swiss"]
[EventCountry "CRO"]
[SourceTitle "playchess.com"]
[Source "ChessBase"]
[SourceQuality "1"]
[TimeControl "5400+30"]

1. b3 {[%emt 0:01:08]} e5 {[%emt 0:00:22]} 2. Bb2 {[%emt 0:00:05]} Nc6 {[%emt 0:00:11]} 3. c4 {[%emt 0:00:14]} f5 {[%emt 0:01:00]} 4. e3 {[%emt 0:01:45]} Nf6 {[%emt 0:00:35]} 5. Nf3 {[%emt 0:02:04]} d6 {[%emt 0:01:53]} 6. d4 {[%emt 0:00:23]} e4 {[%emt 0:02:36]} 7. d5 {[%emt 0:01:05]} Nb8 {[%emt 0:13:11]} 8. Ng5 {[%emt 0:02:59]} h6 {[%emt 0:06:51]} 9. Nh3 {[%emt 0:00:11]} g5 {[%emt 0:00:36]} 10. Be2 {[%emt 0:06:00]} Bg7 {[%emt 0:00:08]} 11. Bh5+ {[%emt 0:01:01]} Kf8 {[%emt 0:00:16]} 12. Be2 {[%emt 0:00:27]} Qe7 {[%emt 0:06:27]} 1/2-1/2

[Event "28th Bosnjaci Open 2024"]
[Site "Bosnjaci"]
[Date "2024.01.06"]
[Round "6.10"]
[White "Zovko, Mario"]
[Black "Petricevic, Mateo"]
[Result "1-0"]
[ECO "D32"]
[WhiteElo "2268"]
[BlackElo "2019"]
[Annotator "ChessBase"]
[PlyCount "123"]
[EventDate "2024.01.02"]
[EventType "swiss"]
[EventCountry "CRO"]
[SourceTitle "playchess.com"]
[Source "ChessBase"]
[SourceQuality "1"]
[TimeControl "5400+30"]

1. d4 {[%emt 0:04:11]} d5 {[%emt 0:00:09]} 2. c4 {[%emt 0:00:05]} e6 {[%emt 0:00:22]} 3. Nc3 {[%emt 0:01:01]} c5 {[%emt 0:00:26]} 4. cxd5 {[%emt 0:02:34]} cxd4 {[%emt 0:00:08]} 5. Qa4+ {[%emt 0:00:03]} Bd7 {[%emt 0:00:13]} 6. Qxd4 {[%emt 0:00:04]} exd5 {[%emt 0:00:09]} 7. Qxd5 {[%emt 0:00:04]} Nf6 {[%emt 0:00:16]} 8. Qd1 {[%emt 0:00:04]} Nc6 {[%emt 0:00:06]} 9. Nf3 {[%emt 0:00:54]} Bc5 {[%emt 0:00:11]} 10. a3 {[%emt 0:01:14]} h6 {[%emt 0:12:48]} 11. e3 {[%emt 0:01:56]} Qe7 {[%emt 0:00:15]} 12. Be2 {[%emt 0:00:23]} g5 {[%emt 0:01:46]} 13. b4 {[%emt 0:03:26]} Bd6 {[%emt 0:05:37]} 14. Nb5 {[%emt 0:05:15]} Bb8 {[%emt 0:00:14]} 15. Bb2 {[%emt 0:01:31]} a6 {[%emt 0:05:17]} 16. Nbd4 {[%emt 0:01:55]} g4 {[%emt 0:03:39]} 17. Nxc6 {[%emt 0:05:10]} Bxc6 {[%emt 1:07:24]} 18. Qd4 {[%emt 0:00:06]} gxf3 {[%emt 0:00:00]} 19. Bxf3 {[%emt 0:00:09]} Bxf3 {[%emt 0:00:00]} 20. gxf3 {[%emt 0:00:21]} Rg8 {[%emt 0:00:00]} 21. Qxf6 {[%emt 0:02:21]} Qxf6 {[%emt 0:00:00]} 22. Bxf6 {[%emt 0:00:05]} Rg6 {[%emt 0:00:00]} 23. Bd4 {[%emt 0:00:18]} Bd6 {[%emt 0:00:00]} 24. Ke2 {[%emt 0:02:13]} a5 {[%emt 0:00:00]} 25. Bc3 {[%emt 0:06:11]} Rc8 {[%emt 0:00:00]} 26. Rac1 {[%emt 0:02:17]} h5 {[%emt 0:00:00]} 27. Bd2 {[%emt 0:02:41]} Rxc1 {[%emt 0:00:00]} 28. Rxc1 {[%emt 0:00:06]} Rg2 {[%emt 0:00:00]} 29. Rh1 {[%emt 0:01:20]} axb4 {[%emt 0:00:00]} 30. axb4 {[%emt 0:00:22]} Rxh2 {[%emt 0:00:00]} 31. Rxh2 {[%emt 0:00:33]} Bxh2 {[%emt 0:00:00]} 32. f4 {[%emt 0:00:01]} h4 {[%emt 0:00:00]} 33. Kf3 {[%emt 0:20:13]} h3 {[%emt 0:00:00]} 34. Kg4 {[%emt 0:01:39]} Bg1 {[%emt 0:00:00]} 35. Kxh3 {[%emt 0:00:07]} Bxf2 {[%emt 0:00:00]} 36. Kg4 {[%emt 0:00:04]} Ke7 {[%emt 0:00:00]} 37. e4 {[%emt 0:05:37]} Bd4 {[%emt 0:00:00]} 38. Kf5 {[%emt 0:01:04]} Bb2 {[%emt 0:00:00]} 39. e5 {[%emt 0:03:31]} Bd4 {[%emt 0:00:00]} 40. Ke4 {[%emt 0:00:35]} Bf2 {[%emt 0:00:00]} 41. Kd5 {[%emt 0:00:55]} Kd7 {[%emt 0:00:00]} 42. Bc3 {[%emt 0:03:18]} Bh4 {[%emt 0:00:00]} 43. Bd4 {[%emt 0:01:17]} Be7 {[%emt 0:00:00]} 44. Bc5 {[%emt 0:00:19]} Bh4 {[%emt 0:00:00]} 45. Ke4 {[%emt 0:01:11]} Ke6 {[%emt 0:00:00]} 46. f5+ {[%emt 0:00:04]} Kd7 {[%emt 0:00:00]} 47. b5 {[%emt 0:01:25]} Bg5 {[%emt 0:00:00]} 48. Kf3 {[%emt 0:04:18]} Bd2 {[%emt 0:00:00]} 49. Bd4 {[%emt 0:00:15]} Bc1 {[%emt 0:00:00]} 50. Ke4 {[%emt 0:00:13]} Bd2 {[%emt 0:00:00]} 51. Bc5 {[%emt 0:00:20]} Be1 {[%emt 0:00:00]} 52. e6+ {[%emt 0:01:18]} fxe6 {[%emt 0:00:00]} 53. f6 {[%emt 0:00:01]} Bh4 {[%emt 0:00:00]} 54. f7 {[%emt 0:00:33]} Be7 {[%emt 0:00:00]} 55. f8=Q {[%emt 0:20:49]} Bxf8 {[%emt 0:00:00]} 56. Bxf8 {[%emt 0:00:00]} Kc7 {[%emt 0:00:00]} 57. Bc5 {[%emt 0:00:00]} Kb8 {[%emt 0:00:00]} 58. Ke5 {[%emt 0:00:00]} Ka8 {[%emt 0:00:00]} 59. Kxe6 {[%emt 0:00:00]} Kb8 {[%emt 0:00:00]} 60. Kd7 {[%emt 0:00:00]} Ka8 {[%emt 0:00:00]} 61. Kc7 {[%emt 0:00:00]} b6 {[%emt 0:00:00]} 62. Kxb6 {[%emt 0:00:00]} 1-0

[Event "28th Bosnjaci Open 2024"]
[Site "Bosnjaci"]
[Date "2024.01.06"]
[Round "6.11"]
[White "Pavic, Filip"]
[Black "Dubrovic, Mihovil"]
[Result "1-0"]
[ECO "C60"]
[WhiteElo "2261"]
[BlackElo "1955"]
[Annotator "ChessBase"]
[PlyCount "47"]
[EventDate "2024.01.02"]
[EventType "swiss"]
[EventCountry "CRO"]
[SourceTitle "playchess.com"]
[Source "ChessBase"]
[SourceQuality "1"]
[TimeControl "5400+30"]

1. e4 {[%emt 0:01:13]} e5 {[%emt 0:00:11]} 2. Nf3 {[%emt 0:00:22]} Nc6 {[%emt 0:00:24]} 3. Bb5 {[%emt 0:00:10]} Nge7 {[%emt 0:00:23]} 4. Nc3 {[%emt 0:01:06]} g6 {[%emt 0:00:41]} 5. d4 {[%emt 0:00:26]} exd4 {[%emt 0:13:43]} 6. Nd5 {[%emt 0:00:16]} Nxd5 {[%emt 0:03:50]} 7. exd5 {[%emt 0:00:08]} Qe7+ {[%emt 0:04:07]} 8. Kf1 {[%emt 0:00:06]} Qc5 {[%emt 0:11:35]} 9. Qe2+ {[%emt 0:13:57]} Ne7 {[%emt 0:04:48]} 10. Bg5 {[%emt 0:13:58]} Bg7 {[%emt 0:11:47]} 11. Re1 {[%emt 0:20:11]} f6 {[%emt 0:00:47]} 12. b4 {[%emt 0:07:31]} Qxb4 {[%emt 0:07:14]} 13. Bd2 {[%emt 0:02:00]} Qa3 {[%emt 0:06:49]} 14. Nxd4 {[%emt 0:05:47]} Kd8 {[%emt 0:10:06]} 15. Bc1 {[%emt 0:05:41]} Qc5 {[%emt 0:03:55]} 16. Nb3 {[%emt 0:01:35]} Qd6 {[%emt 0:00:57]} 17. Bf4 {[%emt 0:00:40]} Qa3 {[%emt 0:00:16]} 18. d6 {[%emt 0:05:19]} Nd5 {[%emt 0:02:45]} 19. Bc4 {[%emt 0:00:28]} cxd6 {[%emt 0:03:02]} 20. Bxd5 {[%emt 0:00:16]} Bf8 {[%emt 0:04:19]} 21. h4 {[%emt 0:09:22]} Qb4 {[%emt 0:00:56]} 22. Bd2 {[%emt 0:00:47]} Qa4 {[%emt 0:01:09]} 23. Rh3 {[%emt 0:01:52]} Rb8 {[%emt 0:00:29]} 24. Qe8+ {[%emt 0:00:31]} 1-0

[Event "28th Bosnjaci Open 2024"]
[Site "Bosnjaci"]
[Date "2024.01.06"]
[Round "6.12"]
[White "Troselj, Ivan"]
[Black "Cvitan, Ena"]
[Result "1/2-1/2"]
[ECO "B13"]
[WhiteElo "2067"]
[BlackElo "2242"]
[Annotator "RC"]
[PlyCount "30"]
[EventDate "2024.01.02"]
[EventType "swiss"]
[EventCountry "CRO"]
[SourceTitle "playchess.com"]
[Source "ChessBase"]
[SourceQuality "1"]
[TimeControl "5400+30"]

1. e4 {[%emt 0:00:18]} c6 {[%emt 0:00:08]} 2. d4 {[%emt 0:00:06]} d5 {[%emt 0:00:05]} 3. exd5 {[%emt 0:00:04]} cxd5 {[%emt 0:00:05]} 4. Bd3 {[%emt 0:00:05]} Nc6 {[%emt 0:00:06]} 5. c3 {[%emt 0:00:05]} Nf6 {[%emt 0:00:10]} 6. Bf4 {[%emt 0:00:09]} Bg4 {[%emt 0:00:33]} 7. Qb3 {[%emt 0:00:07]} Qd7 {[%emt 0:02:18]} 8. Nd2 {[%emt 0:01:09]} e6 {[%emt 0:00:06]} 9. Ngf3 {[%emt 0:00:29]} Bxf3 {[%emt 0:00:06]} 10. Nxf3 {[%emt 0:00:05]} Bd6 {[%emt 0:00:16]} 11. Bxd6 {[%emt 0:00:56]} Qxd6 {[%emt 0:00:04]} 12. Qxb7 {[%emt 0:00:16]} Rb8 {[%emt 0:00:41]} 13. Qa6 {[%emt 0:00:08]} O-O {[%emt 0:04:25]} 14. O-O {[%emt 0:01:29]} Rb6 {[%emt 0:00:52]} 15. Qa3 {[%emt 0:00:08]} Qxa3 {[%emt 0:00:30]} 1/2-1/2